Cogmind - Beta 11.1 @@@ ROGUE MODE // 2022.06.08 @ 18:32:33 Player: ILikeGoodFood Result: Destroyed by as-80980 with Assembled Blade Performance ------------- Evolutions (0) 0 Regions Visited (2) 400 Robots Destroyed (26) 130 Value Destroyed (486) 486 Prototype IDs (1) 20 Alien Tech Used (0) 0 Bonus (0) 0 TOTAL SCORE: 1036 Bonus ------- None Cogmind --------- Core Integrity 0/250 Matter 296/300 Energy 116/125 System Corruption 0% Temperature Warm (194) Movement Flying (37) Location -10/Mines Parts ------- > --- POWER (1) -------- Light Ion Engine > --- PROPULSION (2) --- Improved Flight Unit Improved Flight Unit > --- UTILITY (2) ------ Signal Interpreter ECM Suite > --- WEAPON (2) ------- Particle Gun Light Assault Rifle > --- INVENTORY (5) ---- Improved Flight Unit Sensor Array Signal Interpreter Makeshift Sword Peak State ------------ > --- POWER ------------ Light Ion Engine > --- PROPULSION ------- Improved Flight Unit Improved Flight Unit > --- UTILITY ---------- Signal Interpreter ECM Suite > --- WEAPON ----------- Light Assault Rifle Makeshift Sword > --- INVENTORY -------- Improved Flight Unit Sensor Array Signal Interpreter [Rating: 14] Favorites ----------- Power Light Ion Engine Engine Light Ion Engine Propulsion Improved Flight Unit Wheel Wheel Hover Unit Improved Hover Unit Flight Unit Improved Flight Unit Utility Signal Interpreter Device ECM Suite Processor Signal Interpreter Weapon Medium Laser Energy Gun Medium Laser Ballistic Gun Light Assault Rifle Special Weapon Mining Laser Slashing Weapon Makeshift Sword Build | -11 -10 -10 ------- Run | Scr Mat Min Slots Evolved . | . . . Power . | . . . Propulsion . | . . . Utility . | . . . Weapon . | . . . Parts Attached 29 | 6 13 10 Power 4 | 1 1 2 Engine 4 | 1 1 2 Core . | . . . Reactor . | . . . Propulsion 6 | 2 4 . Treads . | . . . Leg . | . . . Wheel 2 | 2 . . Hover 2 | . 2 . Flight 2 | . 2 . Utility 6 | 1 5 . Device 3 | 1 2 . Storage . | . . . Processor 3 | . 3 . Hackware . | . . . Protection . | . . . Artifact . | . . . Weapon 13 | 2 3 8 Energy Gun 6 | 2 1 3 Energy Cannon . | . . . Ballistic Gun 5 | . 2 3 Ballistic Cannon . | . . . Launcher . | . . . Special Weapon 1 | . . 1 Impact Weapon . | . . . Slashing Weapon 1 | . . 1 Piercing Weapon . | . . . Special Melee Weapon . | . . . Unidentified Prototypes 1 | . 1 . Parts Lost 5 | . 1 4 Power 2 | . . 2 Propulsion . | . . . Utility 1 | . 1 . Weapon 2 | . . 2 Highest Loss Streak 2 | . 1 2 To Critical Strikes . | . . . Average Slot Usage (%) 94 | . 94 94 Engine 11 | . 14 8 Wheel 4 | . 9 . Hover 1 | . 4 . Flight 21 | . 14 28 Device 12 | . 10 14 Processor 13 | . 13 14 Energy Gun 13 | . 20 6 Ballistic Gun 12 | . 7 18 Naked Turns . | . . . Heaviest Build 10 | 8 10 10 Greatest Support 20 | 20 20 10 Greatest Overweight (x) 2 | 2 1 . Average Overweight (x) . | . . . Largest Inventory Capacity 5 | 5 5 5 Average Capacity 5 | 5 5 5 Most Carried 5 | 2 5 5 Average Carried 3 | . 3 4 Final Capacity 5 | 5 5 5 Final Carried 5 | . 5 4 Class Distribution -------------------- 96% | Mutant 3% | Scavenger-Mutant Dominant Class ---------------- Mutant | -10/Materials Mutant | -10/Mines Resources | -11 -10 -10 ----------- Run | Scr Mat Min Matter Collected 616 | 253 145 218 Remotely . | . . . Salvage Created 755 | 124 196 435 Parts 60 | 9 24 27 Haulers Intercepted . | . . . Recyclers Shooed 1 | . 1 . Parts Field Recycled . | . . . Retrieved Matter . | . . . Parts Self-Destructed . | . . . Prevented . | . . . Kills | -11 -10 -10 ------- Run | Scr Mat Min Combat Hostiles Destroyed 20 | . 6 14 Guns 17 | . 4 13 AOE 3 | . 2 1 Classes Destroyed 7 | 2 3 2 Tunneler 3 | 2 . 1 Recycler 2 | 1 1 . Operator 1 | . 1 . Watcher 2 | . 2 . Swarmer 10 | . 6 4 Grunt 8 | . . 8 Assembled 2 | . . 2 Best Kill Streak 4 | 3 3 4 Combat Bots Only 4 | . 3 4 Max Kills in Single Turn 3 | 1 3 1 Gunslinging . | . . . Exploded 2 | . 2 1 Melee . | . . . Uniques/NPCs Destroyed . | . . . Combat | -11 -10 -10 -------- Run | Scr Mat Min Damage Taken 778 | . 188 590 Core 273 | . 69 204 Absorbed by Shields . | . . . Core Remaining (%) 100 | 100 . . Volleys Fired 96 | 5 22 69 Largest 2 | 2 2 2 Hottest 120 | 90 95 120 Shots Fired 171 | 10 44 117 Gun 156 | 10 44 102 Cannon . | . . . Launcher . | . . . Special 15 | . . 15 Kinetic 84 | . 14 70 Thermal 68 | 5 22 41 Explosive . | . . . Electromagnetic 19 | 5 8 6 Robot Hit Streak 13 | 7 9 13 Robot Miss Streak 10 | 1 3 10 Penetration Max . | . . . Secondary Targets 2 | . 2 . Max Gunslinging Chain 1 | . 1 . Shots Hit Robots 87 | 8 21 58 Core Hits 42 | 4 11 27 Critical Kills . | . . . Critical Parts Destroyed . | . . . Critical Strikes 1 | . . 1 Burn 1 | . . 1 Melee Attacks . | . . . Impact . | . . . Slashing . | . . . Piercing . | . . . Sneak Attacks . | . . . Combat Hostiles . | . . . Follow-up Attacks . | . . . Damage Inflicted 1255 | 103 452 700 Guns 1044 | 103 314 627 Cannons . | . . . Explosions 163 | . 138 25 Melee . | . . . Ramming . | . . . Kinetic 520 | . 109 411 Thermal 499 | 38 224 237 Explosive . | . . . Electromagnetic 236 | 65 119 52 Impact . | . . . Slashing . | . . . Piercing . | . . . Highest Corruption . | . . . Average Corruption . | . . . Corruption Purged . | . . . Corruption Blocked . | . . . Overload Shots . | . . . Overflow Damage 16 | . 16 . Projectiles . | . . . Explosions 16 | . 16 . Melee . | . . . Knockbacks . | . . . Impact . | . . . Kinetic . | . . . Secondary . | . . . Self-Inflicted Damage 64 | . 64 . Shots 3 | . 3 . Rammed . | . . . Targets Rammed . | . . . Kicked . | . . . Crushed . | . . . Highest Temperature 348 | 60 164 348 Average Temperature 88 | 30 50 110 Received Heat Transfer 78 | . . 78 Effects 1 | . . 1 Damage (minor) 1 | . . 1 Siege Activations . | . . . Robots Corrupted . | . . . Combat Hostiles . | . . . Parts Fried 1 | 1 . . Impact Corruptions . | . . . Robots Melted . | . . . Combat Hostiles . | . . . Parts Melted . | . . . Heat Transferred 1299 | 111 520 668 Parts Sabotaged . | . . . Parts Stolen . | . . . Parts Stripped . | . . . Power Chain Reactions 3 | . 2 1 Missiles Intercepted . | . . . Alert | -11 -10 -10 ------- Run | Scr Mat Min Peak Influence 229 | 15 229 220 Initial 57 | . 9 57 Average 103 | 4 115 103 Maximum Alert Level 1 | . 1 1 Low Security (%) 93 | 100 94 91 Level 1 6 | . 5 8 Level 2 . | . . . Level 3 . | . . . Level 4 . | . . . Level 5 . | . . . High Security . | . . . Max Security . | . . . Squads Dispatched 1 | . 1 . Investigation . | . . . Extermination . | . . . Reinforcement 1 | . 1 . Assault . | . . . Garrison . | . . . Intercept . | . . . Searches Triggered . | . . . Construction Impeded . | . . . Haulers Reinforced . | . . . Active Scanning Responses . | . . . Cargo Convoy Interrupts . | . . . Stealth | -11 -10 -10 --------- Run | Scr Mat Min Distress Signals . | . . . Communications Jammed . | . . . Distress Signals . | . . . Times Spotted 34 | . 12 22 Peak Tracking Total 4 | . 3 4 Tactical Retreats 3 | . 1 2 Traps | -11 -10 -10 ------- Run | Scr Mat Min Traps Triggered . | . . . Indirectly . | . . . Trap Hack Attempts . | . . . Triggered . | . . . Disarmed 1 | . 1 . Reprogrammed . | . . . Reused . | . . . Traps Extracted . | . . . Installed . | . . . Triggered . | . . . Machines | -11 -10 -10 ---------- Run | Scr Mat Min Machines Disabled 2 | . 2 . Max in Single Turn 1 | . 1 . Machines Sabotaged . | . . . Garrisons Compromised . | . . . Overloaded Fab Kills . | . . . Hacking | -11 -10 -10 --------- Run | Scr Mat Min Machines Accessed 8 | . 7 1 Terminals 6 | . 6 . Fabricators . | . . . Repair Stations . | . . . Recycling Units 1 | . 1 . Scanalyzers . | . . . Garrison Access . | . . . Total Hacks 19 | . 18 1 Successful 12 | . 11 1 Failed 7 | . 7 . Catastrophic 1 | . 1 . Database Lockouts . | . . . Manual . | . . . Terminals 17 | . 17 . Fabricators . | . . . Repair Stations . | . . . Recycling Units 1 | . 1 . Scanalyzers . | . . . Garrison Access . | . . . Terminal Hacks 11 | . 10 1 Record 3 | . 3 . Open Door 1 | . . 1 Branch Access Points 1 | . 1 . Terminal Index 1 | . 1 . Locate Traps 1 | . 1 . Disarm Traps 1 | . 1 . Dispatch Records 1 | . 1 . Patrol Status 1 | . 1 . Investigation Status 1 | . 1 . Fabricator Hacks . | . . . Repair Station Hacks . | . . . Recycling Unit Hacks 1 | . 1 . Report Inventory 1 | . 1 . Scanalyzer . | . . . Garrison Access Hacks . | . . . Unauthorized Hacks . | . . . Terminals . | . . . Fabricators . | . . . Repair Stations . | . . . Recycling Units . | . . . Scanalyzers . | . . . Garrison Access . | . . . Data Cores Recovered 1 | . 1 . Used 1 | . 1 . Hacking Detections 5 | . 5 . Full Trace Events . | . . . Feedback Events . | . . . Feedback Blocked . | . . . Robot Schematics Acquired . | . . . Robots Built . | . . . Authchips . | . . . Time . | . . . Total Robot Build Rating . | . . . Part Schematics Acquired . | . . . Parts Built . | . . . Authchips . | . . . Time . | . . . Total Part Build Rating . | . . . Parts Repaired . | . . . Time . | . . . Parts Recycled . | . . . Recycled Matter . | . . . Retrieved Matter . | . . . Retrieved Components . | . . . Parts Scanalyzed . | . . . Part Schematics Acquired . | . . . Parts Damaged . | . . . Bothacking | -11 -10 -10 ------------ Run | Scr Mat Min Used RIF Installer . | . . . Robots Hacked . | . . . Non-combat . | . . . Combat . | . . . Robot Hacks Applied . | . . . Relay Couplers Released . | . . . Fabnet Peak Effective % . | . . . Robots Rewired . | . . . Allies Hacked . | . . . Hacks Repelled . | . . . Allies | -11 -10 -10 -------- Run | Scr Mat Min Total Allies . | . . . Largest Group . | . . . Highest-Rated Group . | . . . Highest-Rated Ally . | . . . Total Orders . | . . . Ally Attacks . | . . . Total Damage . | . . . Kills . | . . . Allies Corrupted . | . . . Allies Melted . | . . . Intel | -11 -10 -10 ------- Run | Scr Mat Min Robot Analysis Total . | . . . Derelict Logs Recovered 1 | . . 1 Drone Launches . | . . . Drone Recoveries . | . . . Exploration | -11 -10 -10 ------------- Run | Scr Mat Min Turns Passed 1419 | 77 660 682 Spaces Moved 1951 | 53 1143 755 Core 20 | 20 . . Treads . | . . . Legs . | . . . Wheels 269 | 33 236 . Hover 140 | . 140 . Flight 1522 | . 767 755 Fastest Speed 37 | 50 37 37 Average Speed 45 | 94 48 37 Slowest Speed 150 | 150 110 37 Overloaded Moves . | . . . Propulsion Burnouts . | . . . Robots Hopped 13 | . 2 11 Cave-ins Triggered . | . . . Exploration Rate (%) 65 | 4 94 97 Regions Visited 2 Branch Regions 1 Pre-discovered Areas . | . . . Known Exits Taken 1 | . 1 . Unknown Exits Taken 1 | 1 . . Scrap Searched 2 | . . 2 Spaces Dug . | . . . Terrain Destroyed 12 | . 6 6 Melee . | . . . Projectile 1 | . . 1 AOE 11 | . 6 5 Terrain Rammed . | . . . Walls Destroyed . | . . . Machines Disabled . | . . . Actions | -11 -10 -10 --------- Run | Scr Mat Min Total 2289 | 69 1207 1013 Wait 181 | . 3 178 Move 1925 | 52 1139 734 Hop 11 | . 1 10 Pick Up 29 | 6 17 6 Fast Attach 3 | . 1 2 Attach 18 | 6 5 7 Detach 2 | . 1 1 Swap 8 | . 7 1 Drop 16 | . 11 5 Fire 96 | 5 22 69 Melee . | . . . Ram . | . . . Kick . | . . . Crush . | . . . Escape Stasis . | . . . Rewire . | . . . Trap . | . . . Miscellaneous . | . . . Route ------- -11/Scrapyard -10/Materials (discovered 3 exits: *Mat x2 / *Min) -10/Mines (discovered 2 exits: *Mat x2) History --------- Turn | Location | Event 17 | -11/Scrapyard | Discovered new exit (range 16) 78 | -11/Scrapyard | Entered Materials 322 | -10/Materials | Build established: Mutant 404 | -10/Materials | Discovered new exit (range 9) 407 | -10/Materials | Identified exit to Mines 547 | -10/Materials | Discovered new exit (range 10) 550 | -10/Materials | Identified exit to Materials 618 | -10/Materials | Discovered exit to Materials (range 13) 738 | -10/Materials | Entered Mines 766 | -10/Mines | Met a Derelict who couldn't figure out how to use a Trap Extractor 782 | -10/Mines | Excavation squad dispatched 782 | -10/Mines | A large section of the Mines collapsed 876 | -10/Mines | Core integrity fell below 50% 1032 | -10/Mines | Excavation squad dispatched 1162 | -10/Mines | Core integrity fell below 20% 1188 | -10/Mines | A weapon hastily lodged in a ceiling crevice suddenly fell to the ground 1194 | -10/Mines | Learned Materials terminal intel 1239 | -10/Mines | Discovered exit to Materials (range 7) 1244 | -10/Mines | Discovered exit to Materials (range 11) 1420 | -10/Mines | Destroyed by as-80980 with Assembled Blade Last Messages --------------- Found EM Pulse Gun. Found 15 Matter. Acquired EM Pulse Gun. Acquired 10 matter. T-07 Excavator is excavating. Chain reaction triggered in Ion Engine. G-34 Mercenary destroyed. Acquired 4 matter. G-47 Trooper destroyed. Acquired 2 matter. Dropped EM Pulse Gun. Acquired Particle Gun. Acquired 10 matter. R-06 Scavenger collects Sml. Laser. Acquired 1 matter. as-80980 sneak attacks. as-81203 destroyed. Acquired 1 matter. R-06 Scavenger collects Flight Unit. R-06 Scavenger collects Mining Laser. Map ----- +----------------------------------------------------+ | ??#!## #### ### ### ## ######## | | ??#%## ######?## # ### | | ###!### * #???### #?## ######## | | #?### !% #?????## ##??## ########! | | #####???## = #######??????# ###????# !% ! | | *##??????### ##????????????# ##?####?# ######### | | ##???????## #????????###### #?## ### #???????? | | [ ####?????# #????????# #?# ## #???????? | | #?????# #????????# #######?# ## #?####??? | | [ #?????# #????????# #???????# # ### ##?? | | ##### #?????# #????????# #???????## ##? | | ????# #?????# #????????# #????????## ## | | ????# ####### #???###### #?????????######## "" | | ????# ## ##### #???????????????## [% | | ????###### ## = #####??????????????## """ | | ?????????# ########* #????????????????### #### | | ?????????# ####### #???????????????## ##??? | | ?????????# #??????????????## #???? | | ?????????# """ #??????????????# ##???? | | ?????????###### """ #??????????????# ####???## | | ??????????????# """% #??????????????## ##??????# | | ??????????????# % ##???????????????####???????# | | ??????????????## %##???????????????????????????# | | ???????????????### #????????????????????????????#% | | ?????????????????#%#########???####????????###### | | ?????????????????#*=%!*=a@!#??## ##???????# | | ?????????????????#%#######r#??# ###?????# | | ?????????????????# #?????#k#??# ##????# #### | | ?????????????????# #?????#%#??# ###### #??? | | ?????#############*###???#%#??## #??? | | ?????# % %[ ! ] =%= #???#%#???# ## #??? | | ?????# ############ #???#=#???# #############??# | | ?????# #??????????# #???# #?### #?????????????## | | ?????# #?????###### ###?# ### ##???????????## | | ?????# #?????# #?# ##????????### | | ?????# #?????# #?##### ###?????## | | ????## #?????# """ """ #?????## ##????# | | ???## #?????# """ """ #??????#### ##???# | | ???# ##????# """ """ #?????????## ##??## | | ???# * ##???# #?????????## """ ##??## # | | ???## ##??# #???????### """ #???###? | | ????## ##?# #??????## """ #??????? | | ????## #### ########??????# ##??????? | | ???## #?????????????# ####???????? | | ??## # ## ####??????????## ##??????????? | | ??# ## ## #???????????### ##???????????? | | ??# ### ## #?????????????####????????????? | | ??# ##?# #### #### #???????????????????? | | ??# ##?# #??# #???????????????????? | | ??# ### #??# #???????????????????? | +----------------------------------------------------+ Best States ------------- Heat Dissipation 25 Energy Generation 10 Energy Capacity 125 Matter Stores 300 Matter Capacity 300 Sight Range 18 Robot Scan Range 14 Terrain Scan Range 16 Terrain Scan Density 10 ECM Strength 1 Evasion (%) 62 Item Schematics ----------------- None Robot Schematics ------------------ None Fabricated ------------ Nothing Alien Tech Used ----------------- None Achievements -------------- None Challenges ------------ None Game ------ Seed GammaEnergyChainsword Manual? 0 Play Time 00:24:40 Cumulative 28.3 hours Start 2022.06.08 @ 18:05:23 End 2022.06.08 @ 18:32:33 Sessions 1 Manual Loads 0 Difficulty Rogue Special Mode None Game No. 52 Rogue 52 Adventurer 0 Explorer 0 Win Type - Total 0 Types 0/0/0/0/0/0/0/0/0 Lore% 20 Gallery% 25 Achievement% 20 Wizard Run 0 Options --------- ASCII 0 Keyboard 0 Movement Mouse Keybinds 0 Fullscreen 1 Font 18/SmallcapsGlow Map View 76x50 Tactical HUD 0 Map Filters NONE Filters NONE Steam 1 RUN: 56cc8107-7872-4a56-b17b-77d9dd6f772a